fUST/lending_fUST_20241118
["ID","MTS","AMOUNT","RATE_DAILY","PERIOD"]
[342497753,1731931837923,-528.52825277,0.0001407,2]
[342497755,1731931837933,-504.86825747,0.0001407,2]
[342497757,1731931837947,-151.0,0.0001407,2]
[342497759,1731931837956,-151.0,0.0001407,2]
[342497761,1731931837966,-151.0,0.0001407,2]
[342497763,1731931837975,-151.0,0.0001407,2]
[342497765,1731931837985,-242.80366675,0.00014173,2]
[342497767,1731931837994,-1000.0,0.00014242,2]
[342497769,1731931838003,-242.80366675,0.00014242,2]
[342497771,1731931838013,-2534.660927,0.00014244,2]
[342497773,1731931838023,-2145.08,0.00014339,2]
[342497775,1731931838032,-1050.66,0.00014339,2]
[342497776,1731931838042,-500.0,0.00014339,2]
[342497777,1731931838053,-7669.89,0.00014339,2]
[342497779,1731931838064,-500.0,0.00014339,2]
[342497781,1731931838073,-1520.8,0.00014339,2]
[342497783,1731931838082,-5.64259842,0.0001434,2]
[342497786,1731931838476,-271.947,0.0001434,2]
[342497787,1731931838488,-222.41040158,0.0001434,2]
[342497788,1731931838498,-500.0,0.0001434,2]
[342497789,1731931838508,-500.0,0.0001434,2]
[342497790,1731931838517,-500.0,0.0001434,2]
[342497791,1731931838526,-500.0,0.0001434,2]
[342497792,1731931838536,-500.0,0.0001434,2]
[342497793,1731931838546,-871.79,0.0001434,2]
[342497794,1731931838556,-430.15334987,0.0001434,2]
[342497795,1731931838568,-69.84665013,0.0001434,2]
[342497796,1731931838578,-500.0,0.0001434,2]
[342497797,1731931838587,-500.0,0.0001434,2]
[342497798,1731931838597,-500.0,0.0001434,2]
[342497799,1731931838607,-2778.29,0.0001434,2]
[342497800,1731931838617,-500.0,0.0001434,2]
[342497802,1731931838627,-500.0,0.0001434,2]
[342497803,1731931838637,-500.0,0.0001434,2]
[342497804,1731931838647,-588.57,0.0001434,2]
[342497805,1731931838656,-500.0,0.0001434,2]
[342497806,1731931838666,-500.0,0.0001434,2]
[342497807,1731931838675,-556.2,0.0001434,2]
[342497808,1731931838685,-1368.36,0.0001434,2]
[342497809,1731931838696,-500.0,0.0001434,2]
[342497810,1731931838706,-500.0,0.0001434,2]
[342497811,1731931838716,-1128.48,0.0001434,2]
[342497812,1731931838725,-500.0,0.0001434,2]
[342497813,1731931838736,-3574.33,0.0001434,2]
[342497814,1731931838746,-500.0,0.0001434,2]
[342497815,1731931838755,-500.0,0.0001434,2]
[342497816,1731931838765,-1645.92334987,0.0001434,2]
[342497850,1731931841477,-500.0,0.00014067,2]
[342497852,1731931841487,-500.0,0.00014067,2]
[342497854,1731931841499,-500.0,0.00014067,2]
[342497856,1731931841509,-500.0,0.00014067,2]
[342497858,1731931841519,-167.75264294,0.00014067,2]
[342497921,1731931843225,-139.71838734,0.00014065,2]
[342497922,1731931843245,-360.28161266,0.00014065,2]
[342497923,1731931843256,-500.0,0.00014066,2]
[342497924,1731931843266,-332.24735706,0.00014067,2]
[342497925,1731931843278,-500.0,0.00014067,2]
[342497926,1731931843289,-500.0,0.00014067,2]
[342497927,1731931843299,-500.0,0.00014067,2]
[342497928,1731931843310,-500.0,0.00014067,2]
[342497929,1731931843320,-409.45008576,0.00014067,2]
[342497930,1731931843330,-500.0,0.00014067,2]
[342497931,1731931843341,-500.0,0.00014067,2]
[342497932,1731931843351,-500.0,0.00014067,2]
[342497933,1731931843362,-500.0,0.00014067,2]
[342497934,1731931843373,-500.0,0.00014067,2]
[342497935,1731931843384,-500.0,0.00014067,2]
[342497936,1731931843395,-500.0,0.00014067,2]
[342497937,1731931843405,-500.0,0.00014067,2]
[342497938,1731931843416,-500.0,0.00014067,2]
[342497939,1731931843427,-500.0,0.00014067,2]
[342497940,1731931843438,-500.0,0.00014067,2]
[342497941,1731931843452,-500.0,0.00014067,2]
[342497942,1731931843462,-500.0,0.00014067,2]
[342497943,1731931843475,-500.0,0.00014067,2]
[342497944,1731931843485,-284.39446836,0.00014067,2]
[342497945,1731931843497,-500.0,0.00014067,2]
[342497946,1731931843507,-500.0,0.00014067,2]
[342497947,1731931843518,-500.0,0.00014067,2]
[342497948,1731931843529,-500.0,0.00014067,2]
[342497949,1731931843540,-500.0,0.00014067,2]
[342497950,1731931843551,-500.0,0.00014067,2]
[342497951,1731931843561,-626.09,0.00014067,2]
[342497952,1731931843572,-740.44,0.00014067,2]
[342497953,1731931843583,-7334.83665013,0.0001434,2]
[342497954,1731931843593,-760.14,0.0001434,2]
[342497955,1731931843604,-1075.99,0.0001434,2]
[342497956,1731931843615,-1465.81,0.0001434,2]
[342497957,1731931843625,-832.3,0.0001434,2]
[342497958,1731931843635,-500.0,0.0001434,2]
[342497959,1731931843645,-151.0,0.00014341,2]
[342497960,1731931843655,-500.0,0.00014341,2]
[342497961,1731931843665,-500.0,0.00014341,2]
[342497962,1731931843675,-545.04,0.00014341,2]
[342497963,1731931843685,-500.0,0.00014341,2]
[342497964,1731931843696,-500.0,0.00014341,2]
[342497965,1731931843707,-152.501815,0.00014341,2]
[342497966,1731931843717,-500.0,0.00014341,2]
[342497967,1731931843728,-500.0,0.00014341,2]
[342497968,1731931843738,-710.39,0.00014341,2]
[342497969,1731931843749,-500.0,0.00014341,2]
[342497970,1731931843759,-500.0,0.00014341,2]
[342497971,1731931843770,-151.0,0.00014341,2]
[342497972,1731931843780,-151.0,0.00014341,2]
[342497973,1731931843789,-500.0,0.00014341,2]
[342497974,1731931843798,-500.0,0.00014341,2]
[342497975,1731931843807,-500.0,0.00014341,2]
[342497976,1731931843817,-500.0,0.00014341,2]
[342497977,1731931843826,-500.0,0.00014341,2]
[342497978,1731931843835,-500.0,0.00014341,2]
[342497979,1731931843844,-500.0,0.00014341,2]
[342497980,1731931844104,-500.0,0.00014341,2]
[342497981,1731931844118,-546.84,0.00014341,2]
[342497982,1731931844128,-500.0,0.00014341,2]
[342497983,1731931844138,-614.23,0.00014341,2]
[342497984,1731931844147,-500.0,0.00014341,2]
[342497985,1731931844156,-500.0,0.00014341,2]
[342497986,1731931844166,-500.0,0.00014341,2]
[342497987,1731931844175,-500.0,0.00014341,2]
[342497988,1731931844183,-500.0,0.00014341,2]
[342497989,1731931844194,-500.0,0.00014341,2]
[342497990,1731931844203,-500.0,0.00014341,2]
[342497991,1731931844212,-170.337539,0.00014341,2]
[342497992,1731931844221,-500.0,0.00014341,2]
[342497993,1731931844230,-151.0,0.00014341,2]
[342497994,1731931844239,-500.0,0.00014341,2]
[342497995,1731931844248,-543.53,0.00014341,2]
[342497996,1731931844257,-500.0,0.00014341,2]
[342497997,1731931844267,-151.0,0.00014341,2]
[342497998,1731931844275,-151.0,0.00014341,2]
[342497999,1731931844284,-500.0,0.00014341,2]
[342498000,1731931844294,-568.87274492,0.00014341,2]
[342498001,1731931844303,-500.0,0.00014341,2]
[342498002,1731931844312,-500.0,0.00014341,2]
[342498003,1731931844321,-205.73909756,0.00014341,2]
[342498004,1731931844330,-161.76005656,0.00014341,2]
[342498005,1731931844339,-211.1330053,0.00014341,2]
[342498006,1731931844348,-242.887446,0.00014341,2]
[342498007,1731931844358,-500.0,0.00014341,2]
[342498008,1731931844367,-500.0,0.00014341,2]
[342498009,1731931844376,-500.0,0.00014341,2]
[342498010,1731931844386,-500.0,0.00014341,2]
[342498011,1731931844395,-966.63,0.00014341,2]
[342498012,1731931844404,-500.0,0.00014341,2]
[342498013,1731931844414,-151.0,0.00014341,2]
[342498014,1731931844423,-500.0,0.00014341,2]
[342498015,1731931844432,-500.0,0.00014341,2]
[342498016,1731931844442,-500.0,0.00014341,2]
[342498017,1731931844451,-500.0,0.00014341,2]
[342498018,1731931844460,-151.0,0.00014341,2]
[342498019,1731931844469,-228.55307,0.00014341,2]
[342498020,1731931844479,-500.0,0.00014341,2]
[342498021,1731931844488,-391.08073377,0.00014341,2]
[342498022,1731931844497,-202.589652,0.00014341,2]
[342498023,1731931844506,-202.589652,0.00014341,2]
[342498024,1731931844515,-200.703502,0.00014341,2]
[342498025,1731931844525,-536.42,0.00014341,2]
[342498026,1731931844534,-500.0,0.00014341,2]
[342498027,1731931844544,-500.0,0.00014341,2]
[342498028,1731931844553,-500.0,0.00014341,2]
[342498029,1731931844562,-732.62,0.00014341,2]
[342498030,1731931844571,-500.0,0.00014341,2]
[342498031,1731931844581,-500.0,0.00014341,2]
[342498032,1731931844590,-1061.55,0.00014341,2]
[342498033,1731931844599,-629.4,0.00014341,2]
[342498034,1731931844608,-500.0,0.00014341,2]
[342498035,1731931844617,-500.0,0.00014341,2]
[342498036,1731931844626,-500.0,0.00014341,2]
[342498037,1731931844636,-534.65,0.00014341,2]
[342498038,1731931844646,-500.0,0.00014341,2]
[342498039,1731931844656,-500.0,0.00014341,2]
[342498040,1731931844666,-569.65472568,0.00014341,2]
[342498041,1731931844676,-626.09,0.00014341,2]
[342498042,1731931844687,-740.44,0.00014341,2]
[342498043,1731931844700,-151.0,0.00014342,2]
[342498044,1731931844710,-625.09656326,0.00014342,2]
[342498045,1731931844720,-500.0,0.00014342,2]
[342498046,1731931844730,-500.0,0.00014342,2]
[342498047,1731931844740,-500.0,0.00014342,2]
[342498048,1731931844751,-500.0,0.00014342,2]
[342498049,1731931844762,-500.0,0.00014342,2]
[342498050,1731931844772,-500.0,0.00014342,2]
[342498051,1731931844783,-500.0,0.00014342,2]
[342498052,1731931844793,-500.0,0.00014342,2]
[342498053,1731931844804,-151.0,0.00014342,2]
[342498054,1731931844814,-500.0,0.00014342,2]
[342498055,1731931844824,-500.0,0.00014342,2]
[342498056,1731931844834,-500.0,0.00014342,2]
[342498057,1731931844844,-500.0,0.00014342,2]
[342498058,1731931844853,-500.0,0.00014342,2]
[342498059,1731931844863,-500.0,0.00014342,2]
[342498060,1731931844872,-500.0,0.00014342,2]
[342498061,1731931844882,-702.54,0.00014342,2]
[342498062,1731931844892,-500.0,0.00014342,2]
[342498063,1731931844902,-500.0,0.00014342,2]
[342498064,1731931844912,-500.0,0.00014342,2]
[342498065,1731931844921,-945.74,0.00014342,2]
[342498066,1731931844931,-500.0,0.00014342,2]
[342498067,1731931844941,-500.0,0.00014342,2]
[342498068,1731931844951,-500.0,0.00014342,2]
[342498069,1731931844961,-500.0,0.00014342,2]
[342498070,1731931844971,-2000.0,0.00014342,2]
[342498071,1731931844981,-500.0,0.00014342,2]
[342498072,1731931844990,-1062.63,0.00014342,2]
[342498073,1731931845000,-500.0,0.00014342,2]
[342498074,1731931845010,-500.0,0.00014342,2]
[342498075,1731931845019,-1322.46,0.00014342,2]
[342498076,1731931845029,-618.83,0.00014342,2]
[342498077,1731931845038,-500.0,0.00014342,2]
[342498078,1731931845048,-500.0,0.00014342,2]
[342498079,1731931845060,-151.0,0.00014342,2]
[342498080,1731931845069,-882.26,0.00014342,2]
[342498081,1731931845079,-151.0,0.00014342,2]
[342498082,1731931845090,-784.24,0.00014342,2]
[342498083,1731931845100,-1160.28992298,0.00014342,2]
[342498096,1731931846203,-721.59007702,0.00014342,2]
[342498099,1731931846215,-500.0,0.00014342,2]
[342498101,1731931846224,-490.17604049,0.00014342,2]
[342498105,1731931846236,-176.99395951,0.00014342,2]
[342498108,1731931846246,-663.89,0.00014342,2]
[342498111,1731931846256,-500.0,0.00014342,2]
[342498113,1731931846266,-151.0,0.00014342,2]
[342498115,1731931846278,-151.0,0.00014342,2]
[342498117,1731931846288,-151.0,0.00014342,2]
[342498119,1731931846297,-151.0,0.00014342,2]
[342498121,1731931846307,-202.589652,0.00014342,2]
[342498123,1731931846316,-202.589652,0.00014342,2]
[342498125,1731931846325,-202.589652,0.00014342,2]
[342498127,1731931846335,-202.589652,0.00014342,2]
[342498128,1731931846345,-151.0,0.00014344,2]
[342498129,1731931846354,-151.0,0.00014344,2]
[342498130,1731931846364,-151.0,0.00014344,2]
[342498131,1731931846374,-126.24203814,0.00014463,2]
[342498132,1731931847920,638.24,0.00010959,2]
[342498133,1731931851358,746.52385315,0.0001401,2]
[342498134,1731931976264,2613.7340627,0.00013262,2]
[342498135,1731931990738,24900.0,0.00013261,2]
[342498136,1731932064105,2302.1145944,0.00013351,2]
[342498137,1731932098662,394.42999192,0.00013965,2]
[342498138,1731932175374,206.54643764,0.00013966,2]
[342498139,1731932191887,1908.96026419,0.00013965,2]
[342498143,1731932470570,1670.34023121,0.00013965,2]
[342498144,1731932505493,206.54643763,0.00013965,2]
[342498146,1731932725135,24900.0,0.00013109,2]
[342498147,1731932796655,1461.5477023,0.00013964,2]
[342498148,1731932841135,-1588.23470231,0.00014012,2]
[342498194,1731933032247,-300.0,0.00014061,2]
[342498196,1731933032261,-300.0,0.00014061,2]
[342498198,1731933032270,-1664.28,0.00014062,2]
[342498200,1731933032280,-509.85,0.00014062,2]
[342498202,1731933032289,-1488.45,0.00014062,2]
[342498204,1731933032298,-500.0,0.00014062,2]
[342498205,1731933032307,-500.0,0.00014062,2]
[342498208,1731933032317,-7030.73,0.00014062,2]
[342498210,1731933032326,-500.0,0.00014062,2]
[342498212,1731933032336,-481.70077588,0.00014062,2]
[342498214,1731933032348,-933.18922412,0.00014062,2]
[342498216,1731933032358,-604.9124089,0.00014063,2]
[342498218,1731933032368,-500.0,0.00014063,2]
[342498220,1731933032377,-799.14,0.00014063,2]
[342498222,1731933032387,-500.0,0.00014063,2]
[342498224,1731933032399,-500.0,0.00014063,2]
[342498226,1731933032409,-500.0,0.00014063,2]
[342498228,1731933032424,-341.08367357,0.00014063,2]
[342498231,1731933032441,-75.69632643,0.00014063,2]
[342498233,1731933032451,-222.31077067,0.00014063,2]
[342498235,1731933032462,-42.63745256,0.00014063,2]
[342498237,1731933032473,-457.36254744,0.00014063,2]
[342498239,1731933032483,-2546.77,0.00014063,2]
[342498241,1731933032496,-500.0,0.00014063,2]
[342498243,1731933032509,-539.52,0.00014063,2]
[342498245,1731933032522,-500.0,0.00014063,2]
[342498247,1731933032536,-948.48,0.00014063,2]
[342498249,1731933032546,-1254.33,0.00014063,2]
[342498251,1731933032555,-500.0,0.00014063,2]
[342498253,1731933032564,-1034.44,0.00014063,2]
[342498255,1731933032573,-500.0,0.00014063,2]
[342498257,1731933032583,-3276.47,0.00014063,2]
[342498259,1731933032592,-8232.36,0.00014063,2]
[342498261,1731933032602,-500.0,0.00014063,2]
[342498263,1731933032612,-696.8,0.00014063,2]
[342498265,1731933032621,-1343.66,0.00014063,2]
[342498267,1731933032631,-986.32,0.00014063,2]
[342498269,1731933032640,-288.00763666,0.00014063,2]
[342498271,1731933032650,-762.94,0.00014063,2]
[342498273,1731933032659,-1000.90501117,0.00014063,2]
[342498275,1731933032669,-259.85801685,0.00014064,2]
[342498277,1731933032680,-500.0,0.00014064,2]
[342498279,1731933032689,-500.0,0.00014064,2]
[342498281,1731933032699,-500.0,0.00014064,2]
[342498283,1731933032709,-500.0,0.00014064,2]
[342498285,1731933032719,-500.0,0.00014064,2]
[342498287,1731933032728,-500.0,0.00014064,2]
[342498289,1731933032738,-500.0,0.00014064,2]
[342498291,1731933032747,-500.0,0.00014064,2]
[342498293,1731933032758,-529.74,0.00014064,2]
[342498294,1731933032767,-500.0,0.00014064,2]
[342498295,1731933032776,-500.0,0.00014064,2]
[342498296,1731933032785,-500.0,0.00014064,2]
[342498297,1731933032795,-500.0,0.00014064,2]
[342498298,1731933032805,-572.59993161,0.00014064,2]
[342498299,1731933032815,-500.0,0.00014064,2]
[342498300,1731933032824,-500.0,0.00014064,2]
[342498301,1731933032835,-500.0,0.00014064,2]
[342498302,1731933032843,-150.52611887,0.00014064,2]
[342498303,1731933032853,-500.0,0.00014064,2]
[342498304,1731933032865,-500.0,0.00014064,2]
[342498305,1731933032875,-651.19,0.00014064,2]
[342498306,1731933032885,-500.0,0.00014064,2]
[342498307,1731933032895,-500.0,0.00014064,2]
[342498308,1731933032906,-500.0,0.00014064,2]
[342498309,1731933032917,-349.74928737,0.00014064,2]
[342498310,1731933032926,-500.0,0.00014064,2]
[342498311,1731933032937,-500.0,0.00014064,2]
[342498312,1731933032946,-500.0,0.00014064,2]
[342498313,1731933032955,-500.0,0.00014064,2]
[342498314,1731933032965,-500.0,0.00014064,2]
[342498315,1731933032974,-500.0,0.00014064,2]
[342498316,1731933032983,-500.0,0.00014064,2]
[342498317,1731933032993,-500.0,0.00014064,2]
[342498319,1731933033002,-500.0,0.00014064,2]
[342498321,1731933033013,-501.27,0.00014064,2]
[342498323,1731933033022,-500.0,0.00014064,2]
[342498325,1731933033032,-438.64388281,0.00014064,2]
[342498327,1731933033042,-500.0,0.00014064,2]
[342498329,1731933033051,-500.0,0.00014064,2]
[342498330,1731933033061,-500.0,0.00014064,2]
[342498332,1731933033070,-563.04,0.00014064,2]
[342498334,1731933033083,-500.0,0.00014064,2]
[342498336,1731933033093,-500.0,0.00014064,2]
[342498338,1731933033102,-500.0,0.00014064,2]
[342498340,1731933033112,-500.0,0.00014064,2]
[342498342,1731933033122,-500.0,0.00014064,2]
[342498344,1731933033133,-500.0,0.00014064,2]
[342498346,1731933033143,-573.92,0.00014064,2]
[342498348,1731933033152,-500.0,0.00014064,2]
[342498350,1731933033162,-500.0,0.00014064,2]
[342498352,1731933033171,-500.0,0.00014064,2]
[342498354,1731933033180,-886.07,0.00014064,2]
[342498356,1731933033190,-500.0,0.00014064,2]
[342498358,1731933033200,-500.0,0.00014064,2]
[342498360,1731933033210,-234.9,0.00014064,2]
[342498362,1731933033221,-442.48534857,0.00014064,2]
[342498364,1731933033232,-500.0,0.00014064,2]
[342498366,1731933033242,-500.0,0.00014064,2]
[342498368,1731933033251,-500.0,0.00014064,2]
[342498371,1731933033263,-671.57,0.00014064,2]
[342498373,1731933033273,-500.36090286,0.00014064,2]
[342498375,1731933033283,-500.0,0.00014064,2]
[342498377,1731933033292,-973.08,0.00014064,2]
[342498379,1731933033301,-500.0,0.00014064,2]
[342498381,1731933033311,-500.0,0.00014064,2]
[342498382,1731933033320,-576.95,0.00014064,2]
[342498383,1731933033330,-500.0,0.00014064,2]
[342498384,1731933033339,-500.0,0.00014064,2]
[342498385,1731933033348,-500.0,0.00014064,2]
[342498386,1731933033358,-500.0,0.00014064,2]
[342498387,1731933033369,-500.0,0.00014064,2]
[342498388,1731933033378,-500.0,0.00014064,2]
[342498389,1731933033388,-510.93,0.00014064,2]
[342498390,1731933033398,-500.0,0.00014064,2]
[342498391,1731933033407,-500.0,0.00014064,2]
[342498392,1731933033420,-500.0,0.00014064,2]
[342498393,1731933033429,-500.0,0.00014064,2]
[342498394,1731933033439,-617.03,0.00014065,2]
[342498395,1731933033448,-500.0,0.00014065,2]
[342498396,1731933033458,-500.0,0.00014065,2]
[342498397,1731933033468,-500.0,0.00014065,2]
[342498398,1731933033478,-500.0,0.00014065,2]
[342498399,1731933033489,-500.0,0.00014065,2]
[342498400,1731933033499,-500.0,0.00014065,2]
[342498401,1731933033509,-258.97290928,0.00014065,2]
[342498402,1731933033519,-478.1752572,0.00014065,2]
[342498403,1731933033529,-1019.83,0.00014065,2]
[342498404,1731933033539,-500.0,0.00014065,2]
[342498405,1731933033549,-1213.12,0.00014065,2]
[342498406,1731933033559,-567.26,0.00014065,2]
[342498407,1731933033569,-500.0,0.00014065,2]
[342498408,1731933033579,-808.74,0.00014065,2]
[342498409,1731933033589,-500.0,0.00014065,2]
[342498410,1731933033599,-925.28,0.00014065,2]
[342498411,1731933033609,-1725.06,0.00014065,2]
[342498412,1731933033619,-500.0,0.00014065,2]
[342498413,1731933033628,-611.57,0.00014065,2]
[342498414,1731933033638,-608.57,0.00014065,2]
[342498415,1731933033647,-866.92,0.00014066,2]
[342498416,1731933033657,-327.56392298,0.00014067,2]
[342498417,1731933033667,-598.72783791,0.00014067,2]
[342498418,1731933033677,-500.0,0.00014067,2]
[342498419,1731933033686,-500.0,0.00014067,2]
[342498420,1731933033696,-500.0,0.00014067,2]
[342498421,1731933033707,-500.0,0.00014067,2]
[342498422,1731933033717,-500.0,0.00014067,2]
[342498423,1731933033727,-511.90335778,0.00014067,2]
[342498424,1731933033737,-500.0,0.00014336,2]
[342498425,1731933033747,-500.0,0.00014336,2]
[342498426,1731933033759,-324.80716143,0.00014336,2]
[342498427,1731933033768,-500.0,0.00014336,2]
[342498428,1731933033778,-500.0,0.00014336,2]
[342498429,1731933033788,-503.23794055,0.00014336,2]
[342498430,1731933033798,-1664.28,0.00014336,2]
[342498431,1731933033808,-509.85,0.00014336,2]
[342498432,1731933033818,-1488.45,0.00014336,2]
[342498433,1731933033829,-500.0,0.00014336,2]
[342498434,1731933033838,-500.0,0.00014336,2]
[342498435,1731933033848,-7030.73,0.00014336,2]
[342498436,1731933033857,-500.0,0.00014336,2]
[342498437,1731933033867,-1414.89,0.00014336,2]
[342498438,1731933033876,-500.0,0.00014337,2]
[342498439,1731933033886,-799.14,0.00014337,2]
[342498440,1731933033896,-500.0,0.00014337,2]
[342498441,1731933033905,-500.0,0.00014337,2]
[342498442,1731933033916,-500.0,0.00014337,2]
[342498443,1731933033926,-500.0,0.00014337,2]
[342498444,1731933033937,-2546.77,0.00014337,2]
[342498445,1731933033947,-500.0,0.00014337,2]
[342498446,1731933033957,-539.52,0.00014337,2]
[342498447,1731933033967,-500.0,0.00014337,2]
[342498448,1731933033976,-948.48,0.00014337,2]
[342498449,1731933033986,-1254.33,0.00014337,2]
[342498450,1731933033996,-500.0,0.00014337,2]
[342498451,1731933034008,-1034.44,0.00014337,2]
[342498452,1731933034017,-500.0,0.00014337,2]
[342498453,1731933034027,-3276.47,0.00014337,2]
[342498454,1731933034037,-8232.36,0.00014337,2]
[342498455,1731933034046,-500.0,0.00014337,2]
[342498456,1731933034056,-696.8,0.00014337,2]
[342498457,1731933034065,-1343.66,0.00014337,2]
[342498458,1731933034075,-986.32,0.00014337,2]
[342498459,1731933034085,-762.94,0.00014337,2]
[342498460,1731933034095,-500.0,0.00014338,2]
[342498461,1731933034104,-500.0,0.00014338,2]
[342498462,1731933034115,-500.0,0.00014338,2]
[342498463,1731933034125,-500.0,0.00014338,2]
[342498464,1731933034136,-369.20792404,0.00014338,2]
[342498465,1731933034146,-500.0,0.00014338,2]
[342498466,1731933034155,-500.0,0.00014338,2]
[342498467,1731933034165,-529.74,0.00014338,2]
[342498468,1731933034175,-500.0,0.00014338,2]
[342498469,1731933034184,-234.61583037,0.00014338,2]
[342498470,1731933034192,-500.0,0.00014338,2]
[342498471,1731933034202,-500.0,0.00014338,2]
[342498472,1731933034212,-500.0,0.00014338,2]
[342498473,1731933034222,-500.0,0.00014338,2]
[342498474,1731933034232,-500.0,0.00014338,2]
[342498475,1731933034242,-500.0,0.00014338,2]
[342498476,1731933034251,-651.19,0.00014338,2]
[342498477,1731933034263,-500.0,0.00014338,2]
[342498478,1731933034273,-500.0,0.00014338,2]
[342498479,1731933034282,-500.0,0.00014338,2]
[342498480,1731933034292,-500.0,0.00014338,2]
[342498481,1731933034301,-500.0,0.00014338,2]
[342498482,1731933034311,-500.0,0.00014338,2]
[342498483,1731933034321,-500.0,0.00014338,2]
[342498484,1731933034331,-500.0,0.00014338,2]
[342498485,1731933034340,-500.0,0.00014338,2]
[342498486,1731933034350,-500.0,0.00014338,2]
[342498487,1731933034360,-500.0,0.00014338,2]
[342498488,1731933034370,-500.0,0.00014338,2]
[342498489,1731933034379,-501.27,0.00014338,2]
[342498490,1731933034389,-500.0,0.00014338,2]
[342498491,1731933034399,-500.0,0.00014338,2]
[342498492,1731933034408,-500.0,0.00014338,2]
[342498493,1731933034420,-500.0,0.00014338,2]
[342498494,1731933034430,-563.04,0.00014338,2]
[342498495,1731933034439,-427.09985551,0.00014338,2]
[342498496,1731933034449,-500.0,0.00014338,2]
[342498497,1731933034459,-500.0,0.00014338,2]
[342498498,1731933034469,-500.0,0.00014338,2]
[342498499,1731933034478,-500.0,0.00014338,2]
[342498500,1731933034488,-500.0,0.00014338,2]
[342498501,1731933034500,-573.92,0.00014338,2]
[342498502,1731933034513,-500.0,0.00014338,2]
[342498503,1731933034522,-500.0,0.00014338,2]
[342498504,1731933034531,-500.0,0.00014338,2]
[342498505,1731933034541,-886.07,0.00014338,2]
[342498506,1731933034551,-500.0,0.00014338,2]
[342498507,1731933034560,-500.0,0.00014338,2]
[342498508,1731933034570,-409.78741822,0.00014338,2]
[342498509,1731933034580,-500.0,0.00014338,2]
[342498510,1731933034591,-252.61190336,0.00014338,2]
[342498511,1731933034605,-247.38809664,0.00014338,2]
[342498512,1731933034615,-437.27236331,0.00014338,2]
[342498513,1731933034627,-234.29763669,0.00014338,2]
[342498514,1731933034637,-500.0,0.00014338,2]
[342498515,1731933034647,-45.28263571,0.00014338,2]
[342498553,1731933038341,-927.79736429,0.00014338,2]
[342498555,1731933038350,-500.0,0.00014338,2]
[342498557,1731933038360,-500.0,0.00014338,2]
[342498559,1731933038370,-67.1201737,0.00014338,2]
[342498563,1731933038395,-509.8298263,0.00014338,2]
[342498565,1731933038406,-500.0,0.00014338,2]
[342498567,1731933038418,-500.0,0.00014338,2]
[342498569,1731933038428,-500.0,0.00014338,2]
[342498571,1731933038437,-500.0,0.00014338,2]
[342498572,1731933038447,-500.0,0.00014338,2]
[342498574,1731933038456,-500.0,0.00014338,2]
[342498576,1731933038467,-510.93,0.00014338,2]
[342498578,1731933038476,-500.0,0.00014338,2]
[342498580,1731933038486,-500.0,0.00014338,2]